fUSD/lending_fUSD_20240712
["ID","MTS","AMOUNT","RATE_DAILY","PERIOD"]
[331881574,1720813840016,-500.0,0.00013976,2]
[331881576,1720813840025,-500.0,0.00013976,2]
[331881578,1720813840035,-500.0,0.00013976,2]
[331881580,1720813840044,-500.0,0.00013976,2]
[331881582,1720813840053,-844.99,0.00013976,2]
[331881584,1720813840063,-500.0,0.00013976,2]
[331881587,1720813840073,-572.44881012,0.00013976,2]
[331881589,1720813840083,-500.0,0.00013976,2]
[331881591,1720813840093,-500.0,0.00013976,2]
[331881594,1720813840102,-500.0,0.00013976,2]
[331881596,1720813840112,-500.0,0.00013976,2]
[331881599,1720813840121,-500.0,0.00013976,2]
[331881601,1720813840131,-500.0,0.00013976,2]
[331881604,1720813840141,-500.0,0.00013976,2]
[331881606,1720813840151,-572.02,0.00013976,2]
[331881607,1720813840160,-500.0,0.00013976,2]
[331881609,1720813840170,-500.0,0.00013976,2]
[331881611,1720813840179,-500.0,0.00013976,2]
[331881613,1720813840189,-500.0,0.00013977,2]
[331881616,1720813840200,-500.0,0.00013977,2]
[331881618,1720813840210,-500.0,0.00013977,2]
[331881620,1720813840220,-500.0,0.00013977,2]
[331881622,1720813840230,-500.0,0.00013977,2]
[331881624,1720813840240,-500.0,0.00013977,2]
[331881626,1720813840250,-500.0,0.00013977,2]
[331881628,1720813840259,-500.0,0.00013977,2]
[331881630,1720813840269,-500.0,0.00013977,2]
[331881632,1720813840278,-500.0,0.00013977,2]
[331881634,1720813840288,-500.0,0.00013977,2]
[331881636,1720813840297,-500.0,0.00013977,2]
[331881638,1720813840307,-500.0,0.00013977,2]
[331881640,1720813840317,-500.0,0.00013977,2]
[331881641,1720813840326,-500.0,0.00013977,2]
[331881643,1720813840335,-157.13496371,0.00013977,2]
[331881645,1720813840345,-500.0,0.00013977,2]
[331881648,1720813840355,-500.0,0.00013977,2]
[331881650,1720813840365,-500.0,0.00013977,2]
[331881652,1720813840374,-500.0,0.00013977,2]
[331881654,1720813840386,-500.0,0.00013977,2]
[331881656,1720813840396,-500.0,0.00013977,2]
[331881658,1720813840406,-500.0,0.00013977,2]
[331881660,1720813840415,-500.0,0.00013977,2]
[331881662,1720813840428,-500.0,0.00013977,2]
[331881663,1720813840438,-500.0,0.00013977,2]
[331881664,1720813840448,-500.0,0.00013977,2]
[331881665,1720813840459,-383.40024329,0.00013977,2]
[331881666,1720813840469,-500.0,0.00013977,2]
[331881667,1720813840479,-500.0,0.00013977,2]
[331881668,1720813840488,-500.0,0.00013977,2]
[331881669,1720813840498,-500.0,0.00013977,2]
[331881670,1720813840508,-500.0,0.00013977,2]
[331881671,1720813840517,-500.0,0.00013977,2]
[331881672,1720813840527,-500.0,0.00013977,2]
[331881673,1720813840537,-500.0,0.00013977,2]
[331881674,1720813840546,-684.18,0.00013977,2]
[331881675,1720813840556,-500.0,0.00013977,2]
[331881676,1720813840566,-500.0,0.00013977,2]
[331881677,1720813840579,-500.0,0.00013977,2]
[331881678,1720813840588,-493.887276,0.00013977,2]
[331881679,1720813840597,-222.28858272,0.00013977,2]
[331881680,1720813840607,-500.0,0.00013977,2]
[331881682,1720813840617,-500.0,0.00013977,2]
[331881683,1720813840626,-500.0,0.00013977,2]
[331881685,1720813840635,-500.0,0.00013977,2]
[331881687,1720813840644,-500.0,0.00013977,2]
[331881689,1720813840654,-500.0,0.00013977,2]
[331881691,1720813840664,-500.0,0.00013977,2]
[331881694,1720813840675,-575.41,0.00013977,2]
[331881696,1720813840685,-500.0,0.00013977,2]
[331881697,1720813840694,-500.0,0.00013977,2]
[331881700,1720813840706,-542.33897723,0.00013977,2]
[331881702,1720813840716,-500.0,0.00013977,2]
[331881704,1720813840725,-647.19729928,0.00013977,2]
[331881706,1720813840734,-500.0,0.00013977,2]
[331881708,1720813840743,-500.0,0.00013977,2]
[331881710,1720813840753,-372.9713084,0.00013977,2]
[331881712,1720813840762,-622.19,0.00013977,2]
[331881714,1720813840772,-349.95578365,0.00013977,2]
[331881716,1720813840781,-500.0,0.00013977,2]
[331881717,1720813840790,-500.0,0.00013977,2]
[331881719,1720813840800,-500.0,0.00013977,2]
[331881721,1720813840809,-500.0,0.00013977,2]
[331881723,1720813840818,-500.0,0.00013977,2]
[331881725,1720813840828,-500.0,0.00013977,2]
[331881727,1720813840837,-500.0,0.00013977,2]
[331881729,1720813840847,-500.0,0.00013977,2]
[331881731,1720813840857,-500.0,0.00013977,2]
[331881733,1720813840867,-622.21,0.00013977,2]
[331881735,1720813840877,-546.85,0.00013977,2]
[331881737,1720813840886,-500.0,0.00013977,2]
[331881739,1720813840896,-500.0,0.00013977,2]
[331881741,1720813840906,-568.09,0.00013977,2]
[331881744,1720813840915,-911.73,0.00013977,2]
[331881746,1720813840926,-500.0,0.00013977,2]
[331881748,1720813840936,-500.0,0.00013977,2]
[331881750,1720813840946,-500.0,0.00013977,2]
[331881752,1720813840956,-500.0,0.00013977,2]
[331881753,1720813840965,-500.0,0.00013977,2]
[331881755,1720813840975,-500.0,0.00013977,2]
[331881757,1720813840984,-481.18357288,0.00013977,2]
[331881759,1720813840994,-902.32,0.00013977,2]
[331881761,1720813841005,-500.0,0.00013977,2]
[331881763,1720813841014,-500.0,0.00013977,2]
[331881765,1720813841024,-500.0,0.00013977,2]
[331881767,1720813841033,-500.0,0.00013977,2]
[331881769,1720813841043,-653.92,0.00013977,2]
[331881771,1720813841052,-500.0,0.00013977,2]
[331881773,1720813841062,-502.75,0.00013977,2]
[331881775,1720813841071,-500.0,0.00013977,2]
[331881777,1720813841080,-500.0,0.00013977,2]
[331881779,1720813841090,-787.15,0.00013977,2]
[331881781,1720813841099,-500.0,0.00013977,2]
[331881783,1720813841109,-500.0,0.00013977,2]
[331881785,1720813841119,-631.75,0.00013977,2]
[331881787,1720813841128,-790.74,0.00013977,2]
[331881789,1720813841137,-553.73,0.00013977,2]
[331881791,1720813841147,-500.0,0.00013977,2]
[331881793,1720813841157,-500.0,0.00013977,2]
[331881795,1720813841167,-570.58,0.00013977,2]
[331881797,1720813841177,-500.0,0.00013977,2]
[331881799,1720813841187,-500.0,0.00013977,2]
[331881802,1720813841197,-500.0,0.00013977,2]
[331881804,1720813841207,-878.5,0.00013977,2]
[331881806,1720813841217,-500.0,0.00013977,2]
[331881808,1720813841226,-814.07,0.00013977,2]
[331881810,1720813841235,-500.0,0.00013977,2]
[331881811,1720813841245,-500.0,0.00013977,2]
[331881813,1720813841255,-500.0,0.00013977,2]
[331881815,1720813841264,-500.0,0.00013977,2]
[331881817,1720813841274,-500.0,0.00013977,2]
[331881819,1720813841284,-500.0,0.00013977,2]
[331881821,1720813841293,-500.0,0.00013977,2]
[331881823,1720813841303,-500.0,0.00013977,2]
[331881825,1720813841313,-618.17,0.00013977,2]
[331881827,1720813841323,-325.97,0.00013977,2]
[331881829,1720813841334,-500.0,0.00013977,2]
[331881832,1720813841344,-500.0,0.00013977,2]
[331881833,1720813841354,-500.0,0.00013977,2]
[331881835,1720813841364,-500.0,0.00013977,2]
[331881837,1720813841374,-500.0,0.00013977,2]
[331881840,1720813841384,-500.0,0.00013977,2]
[331881842,1720813841394,-403.38722685,0.00013977,2]
[331881843,1720813841403,-500.0,0.00013977,2]
[331881845,1720813841413,-606.53,0.00013977,2]
[331881847,1720813841424,-731.67,0.00013977,2]
[331881849,1720813841433,-715.37,0.00013977,2]
[331881851,1720813841443,-679.03,0.00013977,2]
[331881853,1720813841453,-500.0,0.00013977,2]
[331881855,1720813841463,-500.0,0.00013977,2]
[331881857,1720813841472,-500.0,0.00013977,2]
[331881859,1720813841482,-500.0,0.00013977,2]
[331881861,1720813841492,-763.71,0.00013977,2]
[331881863,1720813841502,-500.0,0.00013977,2]
[331881865,1720813841512,-500.0,0.00013977,2]
[331881867,1720813841522,-625.85,0.00013977,2]
[331881869,1720813841531,-602.04,0.00013977,2]
[331881871,1720813841541,-500.0,0.00013977,2]
[331881873,1720813841551,-1006.93,0.00013977,2]
[331881875,1720813841561,-500.0,0.00013977,2]
[331881877,1720813841571,-534.98,0.00013977,2]
[331881879,1720813841584,-500.0,0.00013977,2]
[331881881,1720813841593,-500.0,0.00013977,2]
[331881883,1720813841603,-500.0,0.00013977,2]
[331881885,1720813841613,-836.29,0.00013977,2]
[331881887,1720813841623,-500.0,0.00013977,2]
[331881889,1720813841632,-500.0,0.00013977,2]
[331881891,1720813841642,-500.0,0.00013977,2]
[331881893,1720813841651,-878.37,0.00013977,2]
[331881895,1720813841661,-500.0,0.00013977,2]
[331881907,1720813841768,-500.0,0.00013977,2]
[331881909,1720813841778,-500.0,0.00013977,2]
[331881911,1720813841787,-500.0,0.00013977,2]
[331881913,1720813841796,-500.0,0.00013977,2]
[331881915,1720813841806,-500.0,0.00013977,2]
[331881917,1720813841815,-721.56,0.00013977,2]
[331881919,1720813841825,-500.0,0.00013977,2]
[331881921,1720813841835,-500.0,0.00013977,2]
[331881923,1720813841844,-500.0,0.00013977,2]
[331881925,1720813841853,-500.0,0.00013977,2]
[331881927,1720813841863,-500.0,0.00013977,2]
[331881929,1720813841872,-500.0,0.00013977,2]
[331881931,1720813841881,-566.89,0.00013977,2]
[331881933,1720813841892,-824.53,0.00013977,2]
[331881935,1720813841901,-500.0,0.00013977,2]
[331881937,1720813841911,-500.0,0.00013977,2]
[331881939,1720813841920,-500.0,0.00013977,2]
[331881941,1720813841930,-500.0,0.00013977,2]
[331881943,1720813841940,-798.56,0.00013977,2]
[331881945,1720813841949,-500.0,0.00013977,2]
[331881947,1720813841959,-500.0,0.00013977,2]
[331881949,1720813841969,-500.0,0.00013977,2]
[331881951,1720813841979,-791.29,0.00013977,2]
[331881953,1720813841988,-500.0,0.00013977,2]
[331881955,1720813841997,-542.72,0.00013977,2]
[331881957,1720813842007,-500.0,0.00013977,2]
[331881959,1720813842017,-500.0,0.00013977,2]
[331881961,1720813842027,-344.5704439,0.00013977,2]
[331881962,1720813842036,-500.0,0.00013977,2]
[331881964,1720813842046,-522.85,0.00013977,2]
[331881966,1720813842055,-500.0,0.00013977,2]
[331881969,1720813842065,-552.31,0.00013977,2]
[331881971,1720813842075,-864.74,0.00013977,2]
[331881972,1720813842085,-500.0,0.00013977,2]
[331881974,1720813842094,-459.83210841,0.00013977,2]
[331881976,1720813842104,-500.0,0.00013977,2]
[331881978,1720813842114,-574.64,0.00013977,2]
[331881980,1720813842123,-521.89,0.00013977,2]
[331881982,1720813842132,-500.0,0.00013977,2]
[331881984,1720813842142,-522.07,0.00013977,2]
[331881986,1720813842151,-865.46,0.00013977,2]
[331881988,1720813842161,-500.0,0.00013977,2]
[331881991,1720813842172,-500.0,0.00013977,2]
[331881993,1720813842182,-500.0,0.00013977,2]
[331881995,1720813842191,-500.0,0.00013977,2]
[331881997,1720813842202,-810.78,0.00013977,2]
[331881999,1720813842211,-500.0,0.00013977,2]
[331882001,1720813842222,-500.0,0.00013977,2]
[331882003,1720813842232,-500.0,0.00013977,2]
[331882005,1720813842241,-500.0,0.00013977,2]
[331882007,1720813842250,-500.0,0.00013977,2]
[331882009,1720813842260,-500.0,0.00013977,2]
[331882011,1720813842269,-500.0,0.00013977,2]
[331882013,1720813842279,-447.93754999,0.00013977,2]
[331882015,1720813842288,-841.57,0.00013977,2]
[331882017,1720813842298,-239.61967069,0.00013977,2]
[331882019,1720813842307,-500.0,0.00013977,2]
[331882020,1720813842317,-500.0,0.00013977,2]
[331882022,1720813842326,-500.0,0.00013977,2]
[331882024,1720813842336,-1048.5,0.00013977,2]
[331882026,1720813842346,-587.21833139,0.00013977,2]
[331882028,1720813842356,-500.0,0.00013977,2]
[331882030,1720813842366,-500.0,0.00013977,2]
[331882032,1720813842376,-500.0,0.00013977,2]
[331882034,1720813842385,-500.0,0.00013977,2]
[331882036,1720813842395,-500.0,0.00013977,2]
[331882038,1720813842405,-500.0,0.00013977,2]
[331882040,1720813842415,-500.0,0.00013977,2]
[331882042,1720813842426,-577.05,0.00013977,2]
[331882044,1720813842435,-500.0,0.00013977,2]
[331882046,1720813842444,-517.66,0.00013977,2]
[331882048,1720813842453,-500.0,0.00013977,2]
[331882050,1720813842463,-500.0,0.00013977,2]
[331882052,1720813842474,-557.27,0.00013977,2]
[331882054,1720813842483,-500.0,0.00013977,2]
[331882056,1720813842493,-500.0,0.00013977,2]
[331882057,1720813842502,-500.0,0.00013977,2]
[331882059,1720813842511,-569.48,0.00013977,2]
[331882061,1720813842521,-585.81,0.00013977,2]
[331882063,1720813842531,-554.25,0.00013977,2]
[331882065,1720813842540,-500.0,0.00013977,2]
[331882067,1720813842550,-603.36,0.00013977,2]
[331882069,1720813842559,-500.0,0.00013977,2]
[331882071,1720813842568,-500.0,0.00013977,2]
[331882073,1720813842583,-500.0,0.00013977,2]
[331882075,1720813842593,-500.0,0.00013977,2]
[331882077,1720813842602,-500.0,0.00013977,2]
[331882079,1720813842612,-500.0,0.00013977,2]
[331882081,1720813842623,-654.29,0.00013977,2]
[331882083,1720813842633,-500.0,0.00013977,2]
[331882085,1720813842642,-500.0,0.00013977,2]
[331882087,1720813842654,-500.0,0.00013977,2]
[331882089,1720813842663,-925.87,0.00013977,2]
[331882091,1720813842674,-500.0,0.00013977,2]
[331882093,1720813842684,-706.19,0.00013977,2]
[331882095,1720813842693,-500.0,0.00013977,2]
[331882097,1720813842702,-260.14461898,0.00013977,2]
[331882099,1720813842712,-500.0,0.00013977,2]
[331882101,1720813842722,-500.0,0.00013977,2]
[331882103,1720813842731,-500.0,0.00013977,2]
[331882105,1720813842742,-500.0,0.00013977,2]
[331882107,1720813842751,-500.0,0.00013977,2]
[331882108,1720813842761,-500.0,0.00013977,2]
[331882109,1720813842771,-500.0,0.00013977,2]
[331882110,1720813842780,-564.7,0.00013977,2]
[331882111,1720813842789,-315.01791706,0.00013977,2]
[331882112,1720813842799,-501.1,0.00013977,2]
[331882113,1720813842808,-500.0,0.00013977,2]
[331882114,1720813842817,-639.19,0.00013977,2]
[331882115,1720813842827,-500.0,0.00013977,2]
[331882116,1720813842837,-500.0,0.00013977,2]
[331882117,1720813842846,-500.0,0.00013977,2]
[331882118,1720813842855,-500.0,0.00013977,2]
[331882119,1720813842864,-500.0,0.00013977,2]
[331882120,1720813842873,-500.0,0.00013977,2]
[331882121,1720813842883,-500.0,0.00013977,2]
[331882122,1720813842892,-767.44,0.00013977,2]
[331882123,1720813842902,-500.0,0.00013977,2]
[331882124,1720813842911,-500.0,0.00013977,2]
[331882125,1720813842921,-500.0,0.00013977,2]
[331882127,1720813842930,-916.21,0.00013977,2]
[331882128,1720813842940,-934.39,0.00013977,2]
[331882129,1720813842949,-500.0,0.00013977,2]
[331882130,1720813842958,-500.0,0.00013977,2]
[331882131,1720813842968,-704.08,0.00013977,2]
[331882132,1720813842977,-500.0,0.00013977,2]
[331882133,1720813842987,-935.05,0.00013977,2]
[331882134,1720813842996,-500.0,0.00013977,2]
[331882135,1720813843007,-500.0,0.00013977,2]
[331882136,1720813843016,-912.01,0.00013977,2]
[331882137,1720813843026,-500.0,0.00013977,2]
[331882138,1720813843035,-540.94,0.00013977,2]
[331882139,1720813843045,-1582.07,0.00013977,2]
[331882140,1720813843054,-500.0,0.00013977,2]
[331882141,1720813843064,-573.24,0.00013977,2]
[331882142,1720813843073,-688.46,0.00013977,2]
[331882143,1720813843083,-500.0,0.00013977,2]
[331882144,1720813843092,-500.0,0.00013977,2]
[331882145,1720813843101,-574.18,0.00013977,2]
[331882146,1720813843111,-1064.75,0.00013977,2]
[331882147,1720813843120,-500.0,0.00013977,2]
[331882148,1720813843130,-500.0,0.00013977,2]
[331882149,1720813843139,-500.0,0.00013977,2]
[331882150,1720813843148,-759.58,0.00013977,2]
[331882151,1720813843157,-500.0,0.00013977,2]
[331882152,1720813843166,-500.0,0.00013977,2]
[331882153,1720813843176,-500.0,0.00013977,2]
[331882154,1720813843186,-500.0,0.00013977,2]
[331882155,1720813843196,-500.0,0.00013977,2]
[331882156,1720813843205,-1752.55,0.00013977,2]
[331882157,1720813843215,-500.0,0.00013977,2]
[331882158,1720813843224,-500.0,0.00013977,2]
[331882159,1720813843234,-500.0,0.00013977,2]
[331882160,1720813843243,-500.0,0.00013977,2]
[331882161,1720813843253,-552.22,0.00013977,2]
[331882162,1720813843262,-500.0,0.00013977,2]
[331882163,1720813843272,-500.0,0.00013977,2]
[331882164,1720813843281,-500.0,0.00013977,2]
[331882165,1720813843291,-1366.16,0.00013977,2]
[331882166,1720813843300,-500.0,0.00013977,2]
[331882167,1720813843310,-500.0,0.00013977,2]
[331882168,1720813843320,-500.0,0.00013977,2]
[331882169,1720813843329,-500.0,0.00013977,2]
[331882170,1720813843436,-500.0,0.00013977,2]
[331882171,1720813843446,-500.0,0.00013977,2]
[331882172,1720813843456,-500.0,0.00013977,2]
[331882173,1720813843466,-629.04,0.00013977,2]
[331882174,1720813843476,-500.0,0.00013977,2]
[331882175,1720813843485,-500.0,0.00013977,2]
[331882176,1720813843495,-500.0,0.00013977,2]
[331882177,1720813843505,-722.96,0.00013977,2]
[331882178,1720813843515,-500.0,0.00013977,2]
[331882179,1720813843525,-731.3,0.00013977,2]
[331882180,1720813843534,-500.0,0.00013977,2]
[331882181,1720813843544,-500.0,0.00013977,2]
[331882182,1720813843554,-654.03,0.00013977,2]
[331882183,1720813843563,-500.0,0.00013977,2]
[331882184,1720813843574,-500.0,0.00013978,2]
[331882185,1720813843584,-516.52559589,0.00013978,2]
[331882186,1720813843593,-500.0,0.00013978,2]
[331882187,1720813843603,-500.0,0.00013978,2]
[331882188,1720813843613,-500.0,0.00013978,2]
[331882189,1720813843622,-500.0,0.00013978,2]
[331882190,1720813843632,-491.68449513,0.00013978,2]
[331882191,1720813843641,-500.0,0.00013978,2]
[331882192,1720813843651,-500.0,0.00013978,2]
[331882193,1720813843660,-500.0,0.00013978,2]
[331882194,1720813843669,-582.32,0.00013978,2]
[331882195,1720813843679,-500.0,0.00013978,2]
[331882196,1720813843688,-500.0,0.00013978,2]
[331882197,1720813843698,-541.84,0.00013978,2]
[331882198,1720813843707,-500.0,0.00013978,2]
[331882199,1720813843716,-500.0,0.00013978,2]
[331882200,1720813843726,-500.0,0.00013978,2]
[331882201,1720813843736,-500.0,0.00013978,2]
[331882202,1720813843745,-500.0,0.00013978,2]
[331882203,1720813843754,-500.0,0.00013978,2]
[331882204,1720813843764,-500.0,0.00013978,2]
[331882205,1720813843773,-500.0,0.00013978,2]
[331882206,1720813843783,-500.0,0.00013978,2]
[331882207,1720813843792,-500.0,0.00013978,2]
[331882208,1720813843802,-500.0,0.00013978,2]
[331882209,1720813843811,-500.0,0.00013978,2]
[331882210,1720813843821,-500.0,0.00013978,2]
[331882211,1720813843830,-530.61,0.00013978,2]
[331882212,1720813843840,-500.0,0.00013978,2]
[331882213,1720813843850,-500.0,0.00013978,2]
[331882214,1720813843859,-537.52,0.00013978,2]
[331882215,1720813843869,-500.0,0.00013978,2]
[331882216,1720813843878,-195.3506212,0.00013978,2]
[331882217,1720813843887,-500.0,0.00013978,2]
[331882218,1720813843896,-500.0,0.00013978,2]
[331882219,1720813843906,-714.2,0.00013978,2]
[331882220,1720813843916,-500.0,0.00013978,2]
[331882221,1720813843927,-539.72,0.00013978,2]
[331882222,1720813843937,-500.0,0.00013978,2]
[331882223,1720813843947,-885.25,0.00013978,2]
[331882224,1720813843958,-500.0,0.00013978,2]
[331882225,1720813843968,-500.0,0.00013978,2]
[331882226,1720813843978,-500.0,0.00013978,2]
[331882227,1720813843987,-606.04,0.00013978,2]
[331882228,1720813843996,-683.72,0.00013978,2]
[331882229,1720813844006,-841.5,0.00013978,2]
[331882230,1720813844015,-764.19,0.00013978,2]
[331882231,1720813844025,-500.0,0.00013978,2]
[331882232,1720813844036,-887.74,0.00013978,2]
[331882233,1720813844045,-823.52,0.00013978,2]
[331882234,1720813844055,-835.1,0.00013978,2]
[331882235,1720813844064,-500.0,0.00013978,2]
[331882236,1720813844074,-617.13,0.00013978,2]
[331882237,1720813844083,-563.27,0.00013978,2]
[331882238,1720813844093,-500.0,0.00013978,2]
[331882239,1720813844103,-500.0,0.00013978,2]
[331882240,1720813844112,-119586.4209181,0.00013979,2]
[331882241,1720813844594,-2686.0,0.00013979,2]
[331882242,1720813844617,-500.0,0.00013977,2]
[331882243,1720813844628,-1045.0546679,0.00013979,2]
[331882244,1720813844637,-2052.51153626,0.00013979,2]
[331882245,1720813844648,-280.13964654,0.00013979,2]
[331882246,1720813844675,-7943.8051161,0.00013979,2]
[331882247,1720813844685,-41105.8251955,0.0001398,2]
[331882248,1720813844695,-51382.2814943,0.00013989,2]
[331882249,1720813844705,-151.0,0.00013989,2]
[331882250,1720813844715,-158.605808,0.00013989,2]
[331882251,1720813844724,-175.087312,0.00013989,2]
[331882252,1720813844734,-175.087312,0.00013989,2]
[331882253,1720813844743,-151.0,0.00013989,2]
[331882254,1720813844753,-205.276751,0.00013989,2]
[331882255,1720813844762,-205.276751,0.00013989,2]
[331882256,1720813844771,-151.0,0.00013989,2]
[331882257,1720813844781,-208.65435,0.00013989,2]
[331882258,1720813844790,-500.0,0.00013989,2]
[331882259,1720813844799,-4024.48,0.00013989,2]
[331882260,1720813844808,-244.29780964,0.00013989,2]
[331882261,1720813844820,-709.08266212,0.00013989,2]
[331882262,1720813844832,-8.23952824,0.00013989,2]
[331882263,1720813844843,-350.71425536,0.00013989,2]
[331882264,1720813844864,-149.28574464,0.00013989,2]
[331882265,1720813844873,-500.0,0.00013989,2]
[331882266,1720813844882,-985.28,0.00013989,2]
[331882267,1720813844892,-152.338468,0.00013989,2]
[331882268,1720813844901,-785.39,0.00013989,2]
[331882269,1720813844910,-151.0,0.00013989,2]
[331882270,1720813844919,-151.0,0.00013989,2]
[331882271,1720813844929,-526.95,0.00013989,2]
[331882272,1720813844939,-151.0,0.00013989,2]
[331882273,1720813844948,-500.0,0.00013989,2]
[331882274,1720813844957,-151.0,0.00013989,2]
[331882275,1720813844966,-151.0,0.00013989,2]
[331882276,1720813844975,-500.0,0.00013989,2]
[331882277,1720813844984,-151.0,0.00013989,2]
[331882278,1720813844994,-500.0,0.00013989,2]
[331882279,1720813845003,-768.12,0.00013989,2]
[331882280,1720813845013,-229.16263,0.00013989,2]
[331882281,1720813845024,-151.0,0.00013989,2]
[331882282,1720813845034,-229.16263,0.00013989,2]
[331882283,1720813845044,-151.0,0.00013989,2]
[331882284,1720813845053,-151.0,0.00013989,2]
[331882285,1720813845062,-812.38727874,0.00013989,2]
[331882286,1720813845079,-206.98272126,0.00013989,2]
[331882287,1720813845088,-500.0,0.00013989,2]
[331882288,1720813845097,-151.0,0.00013989,2]
[331882289,1720813845108,-500.0,0.00013989,2]
[331882290,1720813845117,-142.01727874,0.00013989,2]
[331882291,1720813845523,-357.98272126,0.00013989,2]
[331882292,1720813845537,-500.0,0.00013989,2]
[331882293,1720813845552,-500.0,0.00013989,2]
[331882294,1720813845566,-217.34612163,0.00013989,2]
[331882295,1720813845586,-961.38,0.00013989,2]
[331882296,1720813845601,-155.0,0.00013989,2]
[331882297,1720813845616,-709.0,0.00013989,2]
[331882298,1720813845632,-1500.0,0.00013995,2]
[331882299,1720813845648,-180.02801105,0.00013996,2]
[331882300,1720813845663,-29899.7871872,0.00013999,2]
[331882305,1720813846037,-500.87490691,0.00013999,2]
[331882308,1720813846056,-2035.54060394,0.00013999,2]
[331882310,1720813846072,-3020.41878,0.00013999,2]
[331882314,1720813846105,-154187.85079839,0.00013999,2]
[331882316,1720813846359,-1107.68259837,0.00013999,2]
[331882317,1720813846403,-600.0,0.00013999,2]
[331882334,1720813848020,-328.00238978,0.00013999,2]
[331882335,1720813848536,-941.62099497,0.00013999,2]
[331882336,1720813848547,-1014.8698506,0.00013999,2]
[331882337,1720813848562,-833.8914,0.00013999,2]
[331882338,1720813848576,-1506.4247932,0.00013999,2]
[331882339,1720813848588,-253.43075151,0.00013999,2]
[331882340,1720813848599,-258.31960914,0.00013999,2]
[331882341,1720814001618,3000.0,0.00026999,120]
[331882342,1720814007320,363882.49133445,0.00011198,2]
[331882343,1720814038084,2738.43275453,0.00011199,2]
[331882345,1720814245768,167.79,0.00010273,2]
[331882346,1720814271758,458.2,0.00010931,2]
[331882347,1720814278135,380.32591715,0.00011199,2]
[331882348,1720814343698,375.89105475,0.00011199,2]
[331882349,1720814440379,515.07593144,0.00011199,2]
[331882350,1720814440405,98.13133424,0.00011199,2]
[331882351,1720814442800,912.10489493,0.00011199,2]
[331882352,1720814469663,1890.82858828,0.00011199,2]
[331882353,1720814471695,155.0,0.00011199,2]
[331882354,1720814496262,789.45308619,0.00011199,2]
[331882355,1720814498585,491.51450592,0.00011199,2]
[331882356,1720814511558,388.50645422,0.00011199,2]
[331882357,1720814518331,717.89169523,0.00011199,2]
[331882358,1720814520952,412.61839352,0.00011199,2]
[331882359,1720814525524,221.58176335,0.00011199,2]
[331882360,1720814534464,155.44723371,0.00011199,2]
[331882362,1720814577889,387.08901116,0.00011199,2]
[331882363,1720814632469,5599.94548789,0.00011199,2]
[331882365,1720814736848,258.88603077,0.00011199,2]
[331882366,1720814757506,328.93658441,0.00011199,2]
[331882368,1720814764712,310.0,0.00011199,2]